bitfinex-derivatives/quotes_BNBF0:USTF0_20250128
["timestamp","ask_amount","ask_price","bid_price","bid_amount"]
[1738050961995,0.29470271,678.65,677.73,1.10270842]
[1738050962194,0.24349323,678.64,677.73,1.10270842]
[1738050962393,0.29471574,678.62,677.73,1.10270842]
[1738050962598,0.24349323,678.61,677.73,1.10270842]
[1738050962896,0.29472877,678.59,677.73,1.10270842]
[1738050969203,1.09838711,678.52,676.78,1.10270842]
[1738050969400,0.29476787,678.5,676.79,0.29551264]
[1738050980414,0.24332344,678.49,676.8,0.27116544]
[1738050980712,0.24332344,678.49,676.81,0.2955039]
[1738050980917,0.2947809,678.47,676.82,0.27116544]
[1738050981116,0.24332344,678.46,676.83,0.29549517]
[1738050981415,0.29478959,678.45,676.84,0.27116544]
[1738050981615,0.24332344,678.44,676.85,0.29548644]
[1738050981816,0.29479828,678.43,676.86,0.27116544]
[1738050982014,0.24332344,678.42,676.87,0.29547771]
[1738050982215,0.29480697,678.41,676.88,0.27116544]
[1738050982414,0.29480697,678.41,676.87,0.29547771]
[1738050982609,0.2433418,678.4,676.89,0.27116423]
[1738050982815,0.29481566,678.39,676.9,0.27116423]
[1738050983016,0.2433418,678.38,676.88,0.27116423]
[1738050983216,0.29482435,678.37,676.89,0.27116423]
[1738050983415,0.2433418,678.36,676.9,0.27116423]
[1738050983615,0.2433418,678.36,676.87,0.29547771]
[1738050983616,0.29483305,678.35,676.88,0.27116423]
[1738050983816,0.29483305,678.35,676.87,0.29547771]
[1738050983817,0.2433418,678.34,676.89,0.27116423]
[1738050984012,0.29484174,678.33,676.9,0.56662884]
[1738050984212,0.2433418,678.32,676.91,0.56662448]
[1738050984419,0.53818789,678.32,676.92,0.27116423]
[1738050984617,0.29485043,678.31,676.91,0.29546025]
[1738050987019,0.29485043,678.31,676.92,0.27117458]
[1738050987918,0.29485043,678.31,676.93,0.27116964]
[1738050988114,0.29485043,678.31,676.94,0.27116964]
[1738050988315,0.29485043,678.31,676.95,0.27116964]
[1738050988517,0.29485043,678.31,676.92,0.27116964]
[1738050988716,0.29485043,678.31,676.93,0.27116964]
[1738050988918,0.29485043,678.31,676.94,0.27116964]
[1738050989117,0.29485043,678.31,676.95,0.27116964]
[1738050989419,0.29485043,678.31,676.96,0.27116964]
[1738050989618,0.29485043,678.31,676.92,0.27116964]
[1738050991319,0.29485043,678.31,676.93,0.27117794]
[1738050991512,0.29485043,678.31,676.92,0.27117794]
[1738050991717,0.29485043,678.31,676.93,0.27117794]
[1738050992018,0.29485043,678.31,676.94,0.27117794]
[1738050992211,0.29485043,678.31,676.92,0.27117794]
[1738050992415,0.29485043,678.31,676.93,0.27117794]
[1738050992717,0.29485043,678.31,676.94,0.27117794]
[1738050992919,0.29485043,678.31,676.95,0.27117794]
[1738050993119,0.29485043,678.31,676.91,0.29546025]
[1738050993317,0.29485043,678.31,676.92,0.27117948]
[1738050994214,0.29485043,678.31,676.93,0.27117795]
[1738050994520,0.24340201,678.3,676.94,0.27117795]
[1738050994714,0.29485913,678.29,676.92,0.27117795]
[1738050994915,0.24340201,678.28,676.93,0.27117795]
[1738050995116,0.53826548,678.28,676.92,0.27117795]
[1738050995315,0.24340201,678.27,676.93,0.27117795]
[1738050995513,0.24340201,678.27,676.91,0.29546025]
[1738050995514,0.24340201,678.27,676.92,0.27117795]
[1738050996315,0.29486347,678.28,676.93,0.29545152]
[1738050997919,0.29486347,678.28,676.94,1.54036259]
[1738050998222,0.29486347,678.28,676.95,0.29544279]
[1738051000216,0.29486347,678.28,676.96,0.27111118]
[1738051000516,0.29486347,678.28,676.97,0.29543406]
[1738051001414,0.29486347,678.28,676.97,1.39814248]
[1738051002618,0.29486347,678.28,676.98,0.27112111]
[1738051002817,0.29486347,678.28,676.99,0.29542533]
[1738051003019,0.29486347,678.28,677.0,0.27112111]
[1738051003217,0.29486347,678.28,677.01,0.29541661]
[1738051005134,0.29486347,678.28,677.02,0.2711142]
[1738051005316,0.29486347,678.28,677.02,0.56652644]
[1738051005519,0.29486347,678.28,677.03,0.2711142]
[1738051005724,0.29486347,678.28,677.04,0.27111956]
[1738051005924,0.29486347,678.28,677.05,0.27111956]
[1738051006224,0.29486347,678.28,677.06,0.27111956]
[1738051006523,0.29486347,678.28,677.07,0.2711163]
[1738051006724,0.29486347,678.28,677.03,0.2711163]
[1738051006923,0.29486347,678.28,677.04,0.2711163]
[1738051007223,0.29486347,678.28,677.05,0.2711163]
[1738051007417,0.29486347,678.28,677.02,0.29541224]
[1738051007623,0.29486347,678.28,677.03,0.27111258]
[1738051011123,0.29486347,678.28,677.1,1.10270842]
[1738051011521,0.29486347,678.28,677.11,0.27110822]
[1738051014729,0.29486347,678.28,677.12,0.27109171]
[1738051014929,0.29486347,678.28,677.13,0.27109171]
[1738051015129,0.29486347,678.28,677.14,0.27109171]
[1738051015430,0.29486347,678.28,677.1,1.10270842]
[1738051015632,0.29486347,678.28,677.11,0.27108919]
[1738051016624,0.29486347,678.28,677.11,1.37379761]
[1738051016824,0.29486347,678.28,677.12,0.27108919]
[1738051018029,0.29486347,678.28,677.11,1.10270842]
[1738051018228,0.29486347,678.28,677.12,0.27108734]
[1738051019927,0.29486347,678.28,677.04,1.54007855]
[1738051020132,0.29486347,678.28,677.05,0.56648602]
[1738051020430,0.29486347,678.28,677.06,0.27108687]
[1738051021126,0.29486347,678.28,677.07,0.29539043]
[1738051021327,0.29486347,678.28,677.08,0.27108687]
[1738051021630,0.29486347,678.28,677.09,0.2953817]
[1738051021831,0.29486347,678.28,677.1,0.27108687]
[1738051022827,0.29486347,678.28,677.09,0.2953817]
[1738051023025,0.29486347,678.28,677.1,0.27106486]
[1738051023229,0.29486347,678.28,677.11,0.29537298]
[1738051023430,0.29486347,678.28,677.12,0.27106486]
[1738051023632,0.29486347,678.28,677.13,0.29536425]
[1738051023828,0.29486347,678.28,677.14,0.27107115]
[1738051024031,0.29486347,678.28,677.15,0.29535553]
[1738051024233,0.29486347,678.28,677.16,0.27107115]
[1738051024830,0.29486347,678.28,677.17,0.27106946]
[1738051025032,0.29486347,678.28,677.16,0.27106946]
[1738051025234,0.29486347,678.28,677.17,0.27106946]
[1738051026429,0.29486347,678.28,677.18,0.27106889]
[1738051026628,0.29486347,678.28,677.19,0.27106889]
[1738051026934,0.29486347,678.28,677.16,0.29535117]
[1738051026935,0.29486347,678.28,677.2,0.27106889]
[1738051027234,0.29486347,678.28,677.21,0.27106889]
[1738051027429,0.29486347,678.28,677.18,0.27106889]
[1738051027635,0.29486347,678.28,677.19,0.27106889]
[1738051027836,0.29486347,678.28,677.2,0.27106889]
[1738051028038,0.29486347,678.28,677.18,0.27106889]
[1738051028231,0.29486347,678.28,677.19,0.27106405]
[1738051028437,0.29486347,678.28,677.18,0.27106405]
[1738051028735,0.29486347,678.28,677.19,0.27106405]
[1738051028938,0.29486347,678.28,677.2,0.27106405]
[1738051029136,0.29486347,678.28,677.18,0.27106405]
[1738051029332,0.29486347,678.28,677.19,0.27106405]
[1738051029535,0.29486347,678.28,677.18,0.27106405]
[1738051029733,0.29486347,678.28,677.19,0.27106405]
[1738051029934,0.29486347,678.28,677.2,0.27106405]
[1738051030136,0.29486347,678.28,677.21,0.27106141]
[1738051030336,0.29486347,678.28,677.18,0.27106141]
[1738051030536,0.29486347,678.28,677.21,1.10270842]
[1738051030736,0.29486347,678.28,677.22,0.27106141]
[1738051031735,0.29486347,678.28,677.21,1.10270842]
[1738051031938,0.29486347,678.28,677.22,0.27106124]
[1738051033241,1.09838711,678.55,677.22,0.27106124]
[1738051033643,1.09838711,678.55,677.23,0.29532064]
[1738051033943,1.09838711,678.46,677.32,1.10270842]
[1738051036651,1.09838711,678.46,677.33,0.27102775]
[1738051037051,1.09838711,678.46,677.32,1.10270842]
[1738051037252,1.09838711,678.46,677.23,0.29532064]
[1738051037253,1.09838711,678.65,677.33,0.27102614]
[1738051037450,1.09838711,678.65,677.34,0.27102614]
[1738051037651,1.09838711,678.65,677.26,0.27102614]
[1738051037852,1.09838711,678.65,677.26,0.29530756]
[1738051038052,1.09838711,678.65,677.27,0.27102718]
[1738051038448,1.09838711,678.65,677.28,0.27102834]
[1738051038648,1.09838711,678.65,677.27,0.27102834]
[1738051038855,1.09838711,678.65,677.26,0.29530756]
[1738051039154,1.09838711,678.65,677.27,0.27102645]
[1738051039859,1.09838711,678.68,677.27,0.27102645]
[1738051040153,0.53824078,678.67,677.27,0.27102645]
[1738051040354,0.29469403,678.67,677.27,0.27102645]
[1738051040750,0.29469403,678.67,677.26,0.29530756]
[1738051040955,0.29469403,678.67,677.27,0.27102839]
[1738051041151,0.24354844,678.66,677.28,0.29529884]
[1738051041356,0.24354844,678.66,677.29,0.27102839]
[1738051041660,0.24354844,678.66,677.3,0.29529012]
[1738051041957,0.24354844,678.66,677.31,0.27102839]
[1738051042458,0.29469403,678.67,677.3,0.29529012]
[1738051042758,0.24357748,678.66,677.31,0.27102294]
[1738051043560,0.24357748,678.66,677.31,1.37373136]
[1738051043761,0.24357748,678.66,677.32,0.27102294]
[1738051044160,0.24357215,678.65,677.31,1.10270842]
[1738051044355,0.24357215,678.66,677.32,0.27102374]
[1738051044556,0.24357215,678.65,677.32,0.27102374]
[1738051044756,0.24357215,678.66,677.32,0.27102374]
[1738051044960,0.24357215,678.65,677.32,0.27102374]
[1738051045160,0.24357215,678.66,677.32,0.27102374]
[1738051045359,0.24357215,678.65,677.32,0.27102374]
[1738051045564,0.24357215,678.64,677.32,0.27102374]
[1738051045757,0.24357215,678.66,677.32,0.27102374]
[1738051045957,0.24357215,678.65,677.32,0.27102374]
[1738051046263,0.24357215,678.64,677.32,0.27102374]
[1738051046459,0.24357215,678.66,677.32,0.27102374]
[1738051046657,0.24357215,678.63,677.32,0.27102374]
[1738051046862,1.09838711,678.59,677.42,1.10270842]
[1738051047064,0.24357215,678.58,677.43,0.27102374]
[1738051048364,1.09838711,678.59,677.43,0.27102374]
[1738051048862,1.09838711,678.59,677.42,1.10270842]
[1738051050066,1.09838711,678.6,677.44,1.10270842]
[1738051053668,0.29469403,678.67,677.35,1.10270842]
[1738051053861,0.24356664,678.66,677.36,0.27101105]
[1738051055269,0.29469403,678.67,677.36,0.27101105]
[1738051055671,0.24356614,678.66,677.37,0.27101223]
[1738051055867,0.24356614,678.66,677.38,0.27101223]
[1738051056071,0.24356614,678.66,677.35,1.10270842]
[1738051056072,0.24356614,678.66,677.36,0.27101223]
[1738051056273,0.24356614,678.66,677.37,0.27101223]
[1738051056469,0.24356614,678.66,677.36,0.27101223]
[1738051056669,0.29470271,678.65,677.37,0.27101223]
[1738051056871,0.29470271,678.65,677.35,1.10270842]
[1738051058673,0.24350662,678.64,677.35,1.10270842]
[1738051058868,0.2947114,678.63,677.35,1.10270842]
[1738051059268,0.24349601,678.62,677.35,1.10270842]
[1738051059474,0.29472008,678.61,677.35,1.10270842]
[1738051060071,0.29472008,678.61,677.3,1.83508474]
[1738051060972,0.24351197,678.6,677.3,1.83508474]
[1738051061170,0.29472877,678.59,677.3,1.83508474]
[1738051062677,0.24350824,678.58,677.3,1.83508474]
[1738051062877,0.29473746,678.57,677.3,1.83508474]
[1738051065078,0.24349265,678.56,677.3,1.83508474]
[1738051065279,0.29474614,678.55,677.3,1.83508474]
[1738051068481,0.24352524,678.54,677.31,0.27108359]
[1738051068687,0.53827573,678.54,677.3,1.83508474]
[1738051068982,0.24352524,678.53,677.3,1.83508474]
[1738051070289,0.24352524,678.53,677.31,0.27107953]
[1738051071484,0.29475049,678.54,677.3,1.83508474]
[1738051091004,0.29475049,678.54,677.16,1.10192204]
[1738051091207,1.54015239,678.53,677.17,1.54015239]
[1738051091403,0.29476352,678.51,677.17,1.54015239]
[1738051092207,0.29476352,678.51,677.24,1.10192204]
[1738051094307,0.24342918,678.5,677.24,1.10192204]
[1738051094508,0.29477655,678.48,677.24,1.10192204]
[1738051096808,0.29477655,678.48,677.17,1.54015239]
[1738051101017,0.2434414,678.47,677.17,1.54015239]
[1738051101218,0.29478959,678.45,677.17,1.54015239]
[1738051101418,0.2434414,678.44,677.17,1.54015239]
[1738051101621,0.29479828,678.43,677.17,1.54015239]
[1738051101912,0.2434414,678.42,677.17,1.54015239]
[1738051102213,0.29480697,678.41,677.17,1.54015239]
[1738051102418,0.2434414,678.4,677.17,1.54015239]
[1738051102619,0.53826345,678.39,677.17,1.54015239]
[1738051102820,0.5382678,678.38,677.17,1.54015239]
[1738051103119,0.53827214,678.37,677.17,1.54015239]
[1738051103319,0.53827649,678.36,677.17,1.54015239]
[1738051103521,0.53828084,678.35,677.17,1.54015239]
[1738051103721,0.53828518,678.34,677.17,1.54015239]
[1738051103923,0.29484174,678.33,677.17,1.54015239]
[1738051115034,0.24342127,678.32,677.17,1.54015239]
[1738051115235,0.29485043,678.31,677.17,1.54015239]
[1738051115436,0.24342127,678.3,677.17,1.54015239]
[1738051115636,0.29485913,678.29,677.17,1.54015239]
[1738051115837,0.24342127,678.28,677.17,1.54015239]
[1738051116037,0.29486782,678.27,677.17,1.54015239]
[1738051116232,0.24342127,678.26,677.17,1.54015239]
[1738051116537,0.29487652,678.25,677.17,1.54015239]
[1738051116738,0.24342127,678.24,677.17,1.54015239]
[1738051116938,0.53830213,678.24,677.17,1.54015239]
[1738051117332,0.24342127,678.23,677.17,1.54015239]
[1738051117540,0.29488086,678.24,677.17,1.54015239]
[1738051135557,0.2433246,678.23,677.17,1.54015239]
[1738051136558,0.24337704,678.22,677.17,1.54015239]
[1738051136757,0.29488086,678.24,677.17,1.54015239]
[1738051136958,0.24338247,678.23,677.17,1.54015239]
[1738051137853,1.09624992,678.21,677.17,1.54015239]
[1738051138053,0.24338247,678.2,677.17,1.54015239]
[1738051138652,0.24337198,678.19,677.17,1.54015239]
[1738051138860,0.24337198,678.18,677.17,1.54015239]
[1738051139155,1.09624992,678.21,677.17,1.54015239]
[1738051139359,0.24337379,678.2,677.17,1.54015239]
[1738051139755,1.09624992,678.17,677.17,1.54015239]
[1738051140558,0.24336442,678.16,677.17,1.54015239]
[1738051142658,1.09624992,678.13,677.17,1.54015239]
[1738051142862,0.24336442,678.12,677.17,1.54015239]
[1738051145364,1.09624992,678.13,677.17,1.54015239]
[1738051145558,1.09624992,678.08,677.17,1.54015239]
[1738051149168,0.29488086,678.24,677.17,1.54015239]
[1738051155373,0.29488086,678.24,676.98,1.10470015]
[1738051155569,0.29488086,678.24,676.99,0.56653048]
[1738051155772,0.29488086,678.24,677.0,0.29542097]
[1738051156672,0.29488086,678.24,677.01,0.27110478]
[1738051156874,0.29488086,678.24,677.02,0.29541224]
[1738051157073,0.29488086,678.24,677.03,0.27110478]
[1738051157274,0.29488086,678.24,677.04,0.29540352]
[1738051157475,0.29488086,678.24,677.05,0.27110478]
[1738051157675,0.29488086,678.24,677.06,0.29539479]
[1738051157874,0.29488086,678.24,677.07,0.27110478]
[1738051158066,0.29488086,678.24,677.06,0.29539479]
[1738051158269,0.29488086,678.24,677.07,0.27110463]
[1738051162581,0.29488086,678.24,677.08,0.29538606]
[1738051162779,0.29488086,678.24,677.09,0.27110463]
[1738051163776,0.29488086,678.24,677.1,0.56646942]
[1738051164080,0.29488086,678.24,677.11,0.27109208]
[1738051167478,0.29488086,678.24,677.12,0.29536862]
[1738051167678,0.29488086,678.24,677.13,1.37579223]
[1738051167880,0.29488086,678.24,677.14,0.27109208]
[1738051168580,0.29488086,678.24,677.14,0.56645197]
[1738051168779,0.29488086,678.24,677.15,0.27109208]
[1738051171084,0.29488086,678.24,677.14,0.29535989]
[1738051171284,0.29488086,678.24,677.15,0.27107743]
[1738051174590,0.29488086,678.24,677.14,0.29535989]
[1738051174786,0.29488086,678.24,677.15,0.27107621]
[1738051175387,0.29488086,678.24,677.14,0.29535989]
[1738051175588,0.29488086,678.24,677.15,0.27107662]
[1738051177486,0.29488086,678.24,677.15,1.37577677]
[1738051177688,0.29488086,678.24,677.16,0.27107662]
[1738051178281,0.29488086,678.24,677.15,1.10470015]
[1738051178488,0.29488086,678.24,677.16,0.27107514]
[1738051178989,1.09624992,678.57,677.17,0.29534681]
[1738051179191,0.24343851,678.56,677.18,0.27107514]
[1738051179485,0.24343851,678.56,677.18,0.56641758]
[1738051179690,0.24343851,678.56,677.19,0.27107514]
[1738051180189,0.24343785,678.55,677.2,0.27106757]
[1738051180388,0.24343785,678.56,677.19,0.27106757]
[1738051180588,1.48180093,681.65,677.18,0.29534244]
[1738051180589,1.09624992,678.48,677.24,1.10470015]
[1738051180789,1.09624992,678.48,677.25,0.27106757]
[1738051181088,1.09624992,678.48,677.24,1.10470015]
[1738051181389,1.09624992,678.48,677.25,0.27101326]
[1738051181983,1.09624992,678.48,677.26,0.29530756]
[1738051182182,1.09624992,678.48,677.27,0.27101326]
[1738051182590,1.09624992,678.48,677.28,0.29529884]
[1738051182783,1.09624992,678.48,677.29,0.27101326]
[1738051182983,0.24338706,678.47,677.24,1.10470015]
[1738051183188,0.53816796,678.47,677.24,1.10470015]
[1738051183383,0.24338706,678.46,677.24,1.10470015]
[1738051183587,0.29478959,678.45,677.24,1.10470015]
[1738051183887,0.24338706,678.44,677.24,1.10470015]
[1738051184184,0.29479828,678.43,677.24,1.10470015]
[1738051184389,0.24338706,678.42,677.24,1.10470015]
[1738051184588,0.29480697,678.41,677.24,1.10470015]
[1738051184784,0.24338706,678.4,677.27,1.10470015]
[1738051184983,0.29481566,678.39,677.27,1.10470015]
[1738051185291,0.24338706,678.38,677.27,1.10470015]
[1738051185589,0.53817795,678.37,677.27,1.10470015]
[1738051185787,0.5381823,678.36,677.27,1.10470015]
[1738051185983,0.53818665,678.35,677.27,1.10470015]
[1738051186288,1.09624992,678.67,677.27,1.10470015]
[1738051186289,0.53819099,678.34,677.27,1.10470015]
[1738051186486,0.53819534,678.33,677.27,1.10470015]
[1738051186687,0.53819969,678.32,677.27,1.10470015]
[1738051186990,0.53820403,678.31,677.27,1.10470015]
[1738051187189,0.53820838,678.3,677.27,1.10470015]
[1738051187384,0.2433536,678.29,676.89,1.10470015]
[1738051187582,0.53821273,678.29,676.9,0.27119074]
[1738051187789,0.2433536,678.28,676.9,0.27119074]
[1738051189189,0.29486782,678.27,676.9,0.27119074]
[1738051189390,0.2433536,678.26,676.9,0.27119074]
[1738051190890,0.2433536,678.26,676.91,0.27119074]
[1738051191092,0.24333529,678.25,676.92,0.27118495]
[1738051191292,0.24333529,678.26,676.85,0.27118495]
[1738051191700,0.24333529,678.26,676.86,0.29548207]
[1738051191994,0.24333529,678.26,676.87,0.27118495]
[1738051194093,0.29486782,678.27,676.87,0.27118495]
[1738051194486,0.24334293,678.26,676.87,0.27118495]
[1738051196389,0.29486782,678.27,676.87,0.27118495]
[1738051198594,0.29486782,678.27,676.86,1.40018222]
[1738051198796,0.29486782,678.27,676.87,0.56663012]
[1738051198998,0.29486782,678.27,676.88,0.56662575]
[1738051199297,0.29486782,678.27,676.89,0.56662139]
[1738051199497,0.29486782,678.27,676.9,0.56661702]
[1738051199697,0.29486782,678.27,676.91,0.56661266]
[1738051199890,0.29486782,678.27,676.92,0.27115241]
[1738051200121,0.29486782,678.27,676.92,0.56660829]
[1738051200292,0.29486782,678.27,676.92,0.29545588]
[1738051204492,0.29486782,678.27,676.93,0.27112576]
[1738051207296,0.29486782,678.27,676.94,0.29544715]
[1738051207498,0.29486782,678.27,676.95,0.27112576]
[1738051209997,0.29486782,678.27,676.96,0.27107025]
[1738051210202,0.29486782,678.27,676.97,0.27107025]
[1738051210498,0.29486782,678.27,676.98,0.27107025]
[1738051210700,0.29486782,678.27,676.99,0.27107025]
[1738051210901,0.29486782,678.27,677.0,0.27107025]
[1738051211101,0.29486782,678.27,677.01,0.27107025]
[1738051211403,0.29486782,678.27,677.02,0.27107025]
[1738051211596,0.29486782,678.27,676.95,0.27107025]
[1738051211800,0.29486782,678.27,676.94,0.29544715]
[1738051212001,0.29486782,678.27,676.95,0.27106912]
[1738051213602,0.29486782,678.27,676.94,0.29544715]
[1738051213800,0.29486782,678.27,676.95,0.27105628]
[1738051214205,0.29486782,678.27,677.15,1.10470015]
[1738051214404,0.29486782,678.27,677.16,0.27105628]
[1738051215308,0.29486782,678.27,677.15,1.10470015]
[1738051215502,0.29486782,678.27,677.17,0.27104814]
[1738051215705,0.29486782,678.27,677.18,0.27104814]
[1738051215905,0.29486782,678.27,677.16,0.27104814]
[1738051216102,0.29486782,678.27,677.17,0.27104814]
[1738051216405,0.29486782,678.27,677.18,0.27104814]
[1738051216602,0.29486782,678.27,677.15,1.10470015]
[1738051216603,0.29486782,678.27,677.16,0.27104814]
[1738051216805,0.29486782,678.27,677.17,0.27104814]
[1738051217005,0.29486782,678.27,677.15,1.10470015]
[1738051217006,0.29486782,678.27,677.16,0.27104814]
[1738051217208,0.29486782,678.27,677.18,0.27104814]
[1738051217405,0.29486782,678.27,677.19,0.27104814]
[1738051217603,0.29486782,678.27,677.2,0.27104814]
[1738051217809,0.29486782,678.27,677.21,0.27104814]
[1738051218109,0.29486782,678.27,676.99,1.10470015]
[1738051218110,0.29486782,678.27,677.22,0.27104814]
[1738051218306,0.29486782,678.27,677.0,0.27104814]
[1738051218506,0.29486782,678.27,677.01,0.27104408]
[1738051218711,0.29486782,678.27,677.02,0.27104408]
[1738051218907,0.29486782,678.27,677.0,0.27104408]
[1738051219110,0.29486782,678.27,677.01,0.27104408]
[1738051219311,0.29486782,678.27,677.0,0.27104408]
[1738051219506,0.29486782,678.27,677.01,0.27104408]
[1738051219706,1.09624992,678.85,677.0,0.27104408]
[1738051219906,0.53806268,678.84,677.01,0.27104408]
[1738051220112,0.24344245,678.83,677.03,0.29540788]
[1738051220313,0.29462891,678.82,677.03,0.29540788]
[1738051220507,0.29462891,678.82,677.04,0.27104408]
[1738051220508,0.24344245,678.81,677.04,0.27104408]
[1738051221310,0.24344245,678.81,677.06,0.29539479]
[1738051221612,0.24344245,678.81,677.07,0.27104408]
[1738051222205,0.24344245,678.81,677.08,0.29538606]
[1738051222410,0.24344245,678.81,677.09,0.27104408]
[1738051222814,0.24344245,678.81,677.1,0.29537734]
[1738051223013,0.24344245,678.81,677.11,0.27104408]
[1738051223213,0.29463759,678.8,677.11,0.27104408]
[1738051223409,0.24344245,678.79,677.11,0.27104408]
[1738051223809,0.24344245,678.79,677.12,0.29536862]
[1738051224011,0.24344245,678.79,677.13,0.27104408]
[1738051224209,0.29464627,678.78,677.14,0.29535989]
[1738051224413,0.24344245,678.77,677.15,0.27104408]
[1738051224614,0.24344245,678.77,677.16,0.29535117]
[1738051224914,0.29465495,678.76,677.17,0.27104408]
[1738051225114,0.24344245,678.75,677.18,0.29534244]
[1738051225313,0.29466364,678.74,677.19,0.27104408]
[1738051225514,0.24344245,678.73,677.2,0.29533372]
[1738051225717,0.29467232,678.72,677.21,0.27104408]
[1738051225910,0.24344245,678.71,677.22,0.295325]
[1738051226210,0.24344245,678.71,677.23,0.27104408]
[1738051226414,0.294681,678.7,677.24,0.29531628]
[1738051226609,0.24344245,678.69,677.25,0.27104408]
[1738051227213,0.24344245,678.69,677.26,0.29530756]
[1738051227413,0.29468969,678.68,677.27,0.27104408]
[1738051227617,0.24344245,678.67,677.27,0.27104408]
[1738051227915,0.53813648,678.67,677.27,0.27104408]
[1738051228419,0.24344245,678.66,677.27,0.27104408]
[1738051229213,0.24344245,678.66,677.26,0.29530756]
[1738051229616,0.24344245,678.66,677.27,0.27105588]
[1738051230016,0.24334848,678.65,677.28,0.27105581]
[1738051230216,0.24334848,678.65,677.26,0.29530756]
[1738051230217,0.24334848,678.66,677.27,0.27105581]
[1738051231221,0.24334848,678.66,677.26,0.29530756]
[1738051231521,0.24334848,678.66,677.27,0.27109357]
[1738051232222,0.29470706,678.64,677.27,0.27109357]
[1738051232422,0.24334848,678.63,677.26,0.29530756]
[1738051232624,0.24329933,678.62,677.26,0.29530756]
[1738051232816,1.09624992,678.6,677.26,0.29530756]
[1738051233020,0.24329933,678.59,677.26,0.29530756]
[1738051233221,0.29473311,678.58,677.26,0.29530756]
[1738051233422,0.24329933,678.57,677.26,0.29530756]
[1738051233925,0.2947418,678.56,677.26,0.29530756]
[1738051234221,0.24329933,678.55,677.26,0.29530756]
[1738051234421,0.29475049,678.54,677.26,0.29530756]
[1738051234621,0.24329933,678.53,677.26,0.29530756]
[1738051234822,0.29475918,678.52,677.26,0.29530756]
[1738051235022,0.24330609,678.51,677.26,0.29530756]
[1738051237225,0.29476787,678.5,677.26,0.29530756]
[1738051237424,0.24331021,678.49,677.26,0.29530756]
[1738051238026,0.29477655,678.48,677.26,0.29530756]
[1738051238325,0.24331021,678.47,677.26,0.29530756]
[1738051238626,0.29478524,678.46,677.26,0.29530756]
[1738051238827,0.24331021,678.45,677.26,0.29530756]
[1738051239027,0.29479393,678.44,677.26,0.29530756]
[1738051239427,0.2432913,678.43,677.26,0.29530756]
[1738051240928,0.29479393,678.44,677.26,0.29530756]
[1738051241129,0.24329088,678.43,677.26,0.29530756]
[1738051242329,0.24329088,678.43,677.27,0.27110504]
[1738051242828,0.24328742,678.42,677.28,0.27110777]
[1738051243029,0.24328742,678.41,677.29,0.27110777]
[1738051243222,0.24328742,678.43,677.27,0.27110777]
[1738051244931,1.09624992,678.36,677.27,0.27110777]
[1738051245129,0.24328742,678.35,677.27,0.27110777]
[1738051246130,1.09624992,678.36,677.26,0.29530756]
[1738051246932,1.09624992,678.36,677.18,1.10470015]
[1738051247332,0.29483305,678.35,677.18,1.10470015]
[1738051247927,0.29483305,678.35,676.91,1.10470015]
[1738051250735,0.29483305,678.35,676.68,1.10470015]
[1738051250935,0.29483305,678.35,676.69,0.27116388]
[1738051251135,0.29483305,678.35,676.7,0.29555194]
[1738051251435,0.29483305,678.35,676.71,0.27116388]
[1738051252932,0.29483305,678.35,676.72,0.2955432]
[1738051253132,0.29483305,678.35,676.73,0.27116388]
[1738051253333,0.29483305,678.35,676.74,0.29553447]
[1738051253632,0.29483305,678.35,676.75,0.27115106]
[1738051254233,0.24333287,678.34,676.75,0.27115106]
[1738051254435,0.53817026,678.34,676.76,0.29552574]
[1738051254630,0.29483739,678.34,676.77,0.27115106]
[1738051254830,0.29483739,678.34,676.78,0.295517]
[1738051255032,0.24332906,678.33,676.79,0.27116279]
[1738051255234,0.24332906,678.33,676.8,0.29550827]
[1738051255535,0.24332906,678.33,676.81,0.27116279]
[1738051257237,0.24332906,678.33,676.82,0.29549954]
[1738051257439,0.29484609,678.32,676.83,0.27116279]
[1738051257639,0.24332906,678.31,676.84,0.29549081]
[1738051257938,0.29485478,678.3,676.85,0.27116279]
[1738051258241,0.24332906,678.29,676.86,0.29548207]
[1738051258440,0.29486347,678.28,676.86,0.29548207]
[1738051272851,0.29486347,678.28,676.9,1.10470015]
[1738051275252,1.09624992,678.24,676.95,1.10470015]
[1738051278453,1.09624992,678.19,676.99,1.10470015]
[1738051281352,0.24341673,678.18,677.0,0.27118743]
[1738051281656,1.09624992,678.14,677.04,1.10470015]
[1738051281857,0.2949287,678.13,677.05,0.27118743]
[1738051282056,0.2949287,678.13,677.04,1.10470015]
[1738051282254,0.24334092,678.12,677.04,1.10470015]
[1738051284958,0.29494174,678.1,677.04,1.10470015]
[1738051285160,0.24334092,678.09,677.04,1.10470015]
[1738051285360,1.09624992,678.01,676.68,1.10470015]
[1738051285659,0.53832617,678.0,676.68,1.10470015]
[1738051285859,0.53833052,677.99,676.69,1.5412779]
[1738051286056,0.53833487,677.98,676.69,1.5412779]
[1738051286259,0.24334092,677.97,676.69,1.5412779]
[1738051286862,0.29499395,677.98,676.69,1.5412779]
[1738051289063,0.29499395,677.98,676.69,1.83683421]
[1738051289362,0.29499395,677.98,676.7,0.27126747]
[1738051289564,0.29499395,677.98,676.69,1.83683421]
[1738051289864,0.29499395,677.98,676.7,0.27125875]
[1738051297966,0.29499395,677.98,676.69,1.83683421]